[Event "Titled Tuesday Blitz October 04 Early 2022"]
[White "Gunina, Valentina"]
[Black "Kaidanov, Gregory"]
[WhiteFideId "4167570"]
[BlackFideId "2008564"]
[WhiteElo "2376"]
[BlackElo "2696"]
[Result "1-0"]
[Round "05"]
[TimeControl "180+1"]
[Date "2022.10.04"]
[WhiteClock "0:00:27"]
[BlackClock "0:00:03"]

1. d4 {[%clk 0:03:00]}  d5 {[%clk 0:02:59]} 2. c4 {[%clk 0:03:00]}  e6 {[%clk 0:02:59]} 3. Nf3 {[%clk 0:03:00]}  Nf6 {[%clk 0:02:58]} 4. Nc3 {[%clk 0:03:01]}  Nbd7 {[%clk 0:02:57]} 5. Bf4 {[%clk 0:03:00]}  dxc4 {[%clk 0:02:57]} 6. e3 {[%clk 0:02:59]}  Bd6 {[%clk 0:02:53]} 7. Bg3 {[%clk 0:02:58]}  a6 {[%clk 0:02:47]} 8. Bxc4 {[%clk 0:02:57]}  b5 {[%clk 0:02:47]} 9. Bd3 {[%clk 0:02:57]}  Bb7 {[%clk 0:02:47]} 10. a3 {[%clk 0:02:50]}  Bxg3 {[%clk 0:02:44]} 11. hxg3 {[%clk 0:02:50]}  c5 {[%clk 0:02:44]} 12. Qe2 {[%clk 0:02:43]}  Qb6 {[%clk 0:02:43]} 13. Rd1 {[%clk 0:02:37]}  h6 {[%clk 0:02:43]} 14. dxc5 {[%clk 0:02:03]}  Nxc5 {[%clk 0:02:42]} 15. Bb1 {[%clk 0:02:04]}  Rc8 {[%clk 0:02:26]} 16. O-O {[%clk 0:02:02]}  O-O {[%clk 0:02:25]} 17. Ne5 {[%clk 0:02:01]}  Rfd8 {[%clk 0:02:21]} 18. Ng4 {[%clk 0:01:59]}  Nfe4 {[%clk 0:02:07]} 19. Nxe4 {[%clk 0:01:53]}  Nxe4 {[%clk 0:02:05]} 20. Rxd8+ {[%clk 0:01:53]}  Rxd8 {[%clk 0:02:05]} 21. Rd1 {[%clk 0:01:50]}  Rxd1+ {[%clk 0:01:40]} 22. Qxd1 {[%clk 0:01:50]}  Qd6 {[%clk 0:01:36]} 23. Qc2 {[%clk 0:01:42]}  f5 {[%clk 0:01:33]} 24. Nh2 {[%clk 0:01:42]}  Qd2 {[%clk 0:01:28]} 25. Nf3 {[%clk 0:01:41]}  Qxc2 {[%clk 0:01:11]} 26. Bxc2 {[%clk 0:01:41]}  Nd6 {[%clk 0:01:10]} 27. Ne5 {[%clk 0:01:26]}  Bd5 {[%clk 0:00:49]} 28. f3 {[%clk 0:01:26]}  Kf8 {[%clk 0:00:48]} 29. Kf2 {[%clk 0:01:26]}  Ke7 {[%clk 0:00:48]} 30. b3 {[%clk 0:01:16]}  a5 {[%clk 0:00:45]} 31. b4 {[%clk 0:01:14]}  axb4 {[%clk 0:00:44]} 32. axb4 {[%clk 0:01:14]}  Nc4 {[%clk 0:00:41]} 33. Nxc4 {[%clk 0:01:09]}  Bxc4 {[%clk 0:00:40]} 34. e4 {[%clk 0:01:01]}  fxe4 {[%clk 0:00:39]} 35. Bxe4 {[%clk 0:01:01]}  e5 {[%clk 0:00:34]} 36. f4 {[%clk 0:01:00]}  Kf6 {[%clk 0:00:30]} 37. Ke3 {[%clk 0:00:59]}  exf4+ {[%clk 0:00:26]} 38. gxf4 {[%clk 0:00:59]}  g5 {[%clk 0:00:26]} 39. g3 {[%clk 0:00:59]}  gxf4+ {[%clk 0:00:25]} 40. Kxf4 {[%clk 0:00:58]}  Be6 {[%clk 0:00:25]} 41. Bd3 {[%clk 0:00:56]}  Bd7 {[%clk 0:00:25]} 42. Be2 {[%clk 0:00:55]}  Bc6 {[%clk 0:00:25]} 43. Bh5 {[%clk 0:00:43]}  Bd7 {[%clk 0:00:24]} 44. Ke4 {[%clk 0:00:42]}  Kg5 {[%clk 0:00:19]} 45. Be2 {[%clk 0:00:41]}  h5 {[%clk 0:00:17]} 46. Kd5 {[%clk 0:00:40]}  h4 {[%clk 0:00:17]} 47. gxh4+ {[%clk 0:00:40]}  Kxh4 {[%clk 0:00:17]} 48. Kc5 {[%clk 0:00:40]}  Kg5 {[%clk 0:00:17]} 49. Bxb5 {[%clk 0:00:40]}  Bf5 {[%clk 0:00:17]} 50. Ba4 {[%clk 0:00:34]}  Bd3 {[%clk 0:00:17]} 51. Bb3 {[%clk 0:00:34]}  Kf6 {[%clk 0:00:17]} 52. Bc4 {[%clk 0:00:33]}  Be4 {[%clk 0:00:17]} 53. Kd6 {[%clk 0:00:32]}  Bf3 {[%clk 0:00:14]} 54. b5 {[%clk 0:00:32]}  Bb7 {[%clk 0:00:11]} 55. b6 {[%clk 0:00:32]}  Kf5 {[%clk 0:00:04]} 56. Kc7 {[%clk 0:00:28]}  Bf3 {[%clk 0:00:04]} 57. Bb5 {[%clk 0:00:27]}  Ke6 {[%clk 0:00:03]} 58. Bc6 {[%clk 0:00:27]} 1-0


[Site "https://www.chess.com"]

[Event "Titled Tuesday Blitz October 04 Early 2022"]
[White "Harsha Bharathakoti"]
[Black "Matinian, Nikita"]
[WhiteFideId "5078776"]
[BlackFideId "24129100"]
[WhiteElo "2523"]
[BlackElo "2422"]
[Result "0-1"]
[Round "05"]
[TimeControl "180+1"]
[Date "2022.10.04"]
[WhiteClock "0:00:02"]
[BlackClock "0:00:07"]

1. Nf3 {[%clk 0:03:00]}  Nf6 {[%clk 0:02:59]} 2. b3 {[%clk 0:03:00]}  g6 {[%clk 0:03:00]} 3. Bb2 {[%clk 0:02:59]}  Bg7 {[%clk 0:02:57]} 4. e3 {[%clk 0:02:59]}  O-O {[%clk 0:02:58]} 5. d4 {[%clk 0:03:00]}  b6 {[%clk 0:02:57]} 6. Be2 {[%clk 0:02:59]}  Bb7 {[%clk 0:02:57]} 7. O-O {[%clk 0:03:00]}  e6 {[%clk 0:02:56]} 8. c4 {[%clk 0:03:00]}  a5 {[%clk 0:02:54]} 9. Nc3 {[%clk 0:03:00]}  Na6 {[%clk 0:02:54]} 10. Rc1 {[%clk 0:02:47]}  Ne4 {[%clk 0:02:52]} 11. Qc2 {[%clk 0:02:44]}  f5 {[%clk 0:02:51]} 12. a3 {[%clk 0:02:38]}  g5 {[%clk 0:02:51]} 13. Nd2 {[%clk 0:02:35]}  Nxd2 {[%clk 0:02:42]} 14. Qxd2 {[%clk 0:02:36]}  Qf6 {[%clk 0:02:35]} 15. f3 {[%clk 0:01:46]}  Qg6 {[%clk 0:02:23]} 16. Bd3 {[%clk 0:01:44]}  c5 {[%clk 0:02:12]} 17. Ne2 {[%clk 0:01:42]}  cxd4 {[%clk 0:02:00]} 18. exd4 {[%clk 0:01:37]}  g4 {[%clk 0:01:52]} 19. f4 {[%clk 0:01:20]}  h5 {[%clk 0:01:48]} 20. b4 {[%clk 0:01:11]}  axb4 {[%clk 0:01:46]} 21. axb4 {[%clk 0:01:12]}  h4 {[%clk 0:01:45]} 22. d5 {[%clk 0:01:03]}  h3 {[%clk 0:01:39]} 23. g3 {[%clk 0:00:50]}  Bxb2 {[%clk 0:01:35]} 24. Qxb2 {[%clk 0:00:51]}  Qg7 {[%clk 0:01:36]} 25. Qb3 {[%clk 0:00:47]}  exd5 {[%clk 0:01:27]} 26. cxd5 {[%clk 0:00:47]}  d6 {[%clk 0:01:27]} 27. Bb5 {[%clk 0:00:39]}  Qe7 {[%clk 0:00:57]} 28. Rf2 {[%clk 0:00:26]}  Qe4 {[%clk 0:00:44]} 29. Bc6 {[%clk 0:00:26]}  Ra7 {[%clk 0:00:26]} 30. Nc3 {[%clk 0:00:22]}  Qxb4 {[%clk 0:00:26]} 31. Qxb4 {[%clk 0:00:23]}  Nxb4 {[%clk 0:00:27]} 32. Nb5 {[%clk 0:00:23]}  Ra5 {[%clk 0:00:13]} 33. Nxd6 {[%clk 0:00:24]}  Bxc6 {[%clk 0:00:14]} 34. dxc6 {[%clk 0:00:25]}  Nd3 {[%clk 0:00:14]} 35. Rcc2 {[%clk 0:00:15]}  Nxf2 {[%clk 0:00:13]} 36. Kxf2 {[%clk 0:00:16]}  Rd5 {[%clk 0:00:13]} 37. Nb7 {[%clk 0:00:06]}  Rc8 {[%clk 0:00:11]} 38. Ke3 {[%clk 0:00:05]}  Kf7 {[%clk 0:00:11]} 39. Rc3 {[%clk 0:00:03]}  Ke7 {[%clk 0:00:11]} 40. Rc2 {[%clk 0:00:04]}  Rc7 {[%clk 0:00:11]} 41. Rc3 {[%clk 0:00:04]}  b5 {[%clk 0:00:09]} 42. Rc2 {[%clk 0:00:01]}  b4 {[%clk 0:00:09]} 43. Rc4 {[%clk 0:00:02]}  b3 {[%clk 0:00:09]} 44. Rb4 {[%clk 0:00:02]}  Rxc6 {[%clk 0:00:09]} 45. Rxb3 {[%clk 0:00:03]}  Rc2 {[%clk 0:00:08]} 46. Rb6 {[%clk 0:00:01]}  Rxh2 {[%clk 0:00:08]} 47. Rh6 {[%clk 0:00:02]}  Rg2 {[%clk 0:00:07]} 48. Rh7+ {[%clk 0:00:02]}  Kf8 {[%clk 0:00:07]} 49. Rh5 {[%clk 0:00:01]}  Rxg3+ {[%clk 0:00:07]} 50. Ke2 {[%clk 0:00:02]} 0-1


[Site "https://www.chess.com"]

[Event "Titled Tuesday Blitz October 04 Early 2022"]
[White "Jobava, Baadur"]
[Black "Hakobyan, Aram"]
[WhiteFideId "13601520"]
[BlackFideId "13306677"]
[WhiteElo "2582"]
[BlackElo "2563"]
[Result "0-1"]
[Round "05"]
[TimeControl "180+1"]
[Date "2022.10.04"]
[WhiteClock "0:00:04"]
[BlackClock "0:00:22"]

1. e4 {[%clk 0:03:00]}  c5 {[%clk 0:02:59]} 2. c3 {[%clk 0:03:00]}  Nf6 {[%clk 0:02:55]} 3. e5 {[%clk 0:03:01]}  Nd5 {[%clk 0:02:56]} 4. Nf3 {[%clk 0:03:01]}  e6 {[%clk 0:02:56]} 5. g3 {[%clk 0:03:01]}  d6 {[%clk 0:02:55]} 6. exd6 {[%clk 0:03:02]}  Bxd6 {[%clk 0:02:53]} 7. Bg2 {[%clk 0:03:03]}  O-O {[%clk 0:02:53]} 8. O-O {[%clk 0:03:04]}  Nc6 {[%clk 0:02:50]} 9. d4 {[%clk 0:03:04]}  cxd4 {[%clk 0:02:51]} 10. Nxd4 {[%clk 0:03:05]}  Nxd4 {[%clk 0:02:32]} 11. Qxd4 {[%clk 0:03:06]}  Qc7 {[%clk 0:02:31]} 12. c4 {[%clk 0:03:06]}  Be5 {[%clk 0:02:27]} 13. Qe4 {[%clk 0:03:03]}  Nf6 {[%clk 0:02:19]} 14. Qe2 {[%clk 0:03:03]}  Rd8 {[%clk 0:02:11]} 15. Nd2 {[%clk 0:03:02]}  Bd7 {[%clk 0:02:02]} 16. Nf3 {[%clk 0:03:02]}  Bd6 {[%clk 0:02:02]} 17. Nd4 {[%clk 0:02:56]}  Rac8 {[%clk 0:02:00]} 18. Nb5 {[%clk 0:02:50]}  Bxb5 {[%clk 0:01:51]} 19. cxb5 {[%clk 0:02:51]}  Nd5 {[%clk 0:01:42]} 20. Bd2 {[%clk 0:02:30]}  Qc2 {[%clk 0:01:40]} 21. Rab1 {[%clk 0:01:21]}  Bb4 {[%clk 0:01:37]} 22. Rfd1 {[%clk 0:01:21]}  Nf4 {[%clk 0:01:22]} 23. gxf4 {[%clk 0:01:20]}  Rxd2 {[%clk 0:01:22]} 24. Qf3 {[%clk 0:01:03]}  Rcd8 {[%clk 0:01:05]} 25. Rdc1 {[%clk 0:00:58]}  Qf5 {[%clk 0:01:03]} 26. Qxb7 {[%clk 0:00:53]}  Bc5 {[%clk 0:00:58]} 27. Kh1 {[%clk 0:00:45]}  Rxf2 {[%clk 0:00:47]} 28. Rf1 {[%clk 0:00:20]}  Rfd2 {[%clk 0:00:41]} 29. b4 {[%clk 0:00:16]}  Bb6 {[%clk 0:00:41]} 30. a4 {[%clk 0:00:16]}  h5 {[%clk 0:00:38]} 31. a5 {[%clk 0:00:16]}  Be3 {[%clk 0:00:39]} 32. Qe4 {[%clk 0:00:15]}  Qxe4 {[%clk 0:00:31]} 33. Bxe4 {[%clk 0:00:16]}  R8d4 {[%clk 0:00:31]} 34. Bc6 {[%clk 0:00:16]}  Bxf4 {[%clk 0:00:31]} 35. Bg2 {[%clk 0:00:12]}  Bb8 {[%clk 0:00:26]} 36. Rbc1 {[%clk 0:00:10]}  Kh7 {[%clk 0:00:23]} 37. Rxf7 {[%clk 0:00:08]}  Rg4 {[%clk 0:00:23]} 38. Bf3 {[%clk 0:00:04]}  Rxh2# {[%clk 0:00:22]} 0-1


[Site "https://www.chess.com"]

[Event "Titled Tuesday Blitz October 04 Early 2022"]
[White "Jones, Gawain C B"]
[Black "Duda, Jan-Krzysztof"]
[WhiteFideId "409561"]
[BlackFideId "1170546"]
[WhiteElo "2657"]
[BlackElo "2779"]
[Result "0-1"]
[Round "05"]
[TimeControl "180+1"]
[Date "2022.10.04"]
[WhiteClock "0:00:02"]
[BlackClock "0:00:03"]

1. Nf3 {[%clk 0:03:00]}  Nf6 {[%clk 0:02:51]} 2. g3 {[%clk 0:03:00]}  d5 {[%clk 0:02:49]} 3. Bg2 {[%clk 0:03:01]}  c6 {[%clk 0:02:50]} 4. O-O {[%clk 0:03:00]}  Bg4 {[%clk 0:02:51]} 5. c4 {[%clk 0:03:00]}  e6 {[%clk 0:02:50]} 6. Qb3 {[%clk 0:03:00]}  Qb6 {[%clk 0:02:49]} 7. d3 {[%clk 0:03:00]}  Nbd7 {[%clk 0:02:49]} 8. Be3 {[%clk 0:03:00]}  Bc5 {[%clk 0:02:48]} 9. d4 {[%clk 0:02:51]}  Be7 {[%clk 0:02:46]} 10. Nc3 {[%clk 0:02:51]}  Qa6 {[%clk 0:02:42]} 11. cxd5 {[%clk 0:02:49]}  exd5 {[%clk 0:02:43]} 12. h3 {[%clk 0:02:27]}  Bf5 {[%clk 0:02:36]} 13. Nh4 {[%clk 0:02:18]}  Be6 {[%clk 0:02:19]} 14. Qc2 {[%clk 0:02:15]}  O-O {[%clk 0:01:45]} 15. Nf5 {[%clk 0:02:13]}  Bd8 {[%clk 0:01:45]} 16. Bf4 {[%clk 0:02:03]}  g6 {[%clk 0:01:39]} 17. Nh6+ {[%clk 0:01:34]}  Kg7 {[%clk 0:01:34]} 18. Qd2 {[%clk 0:01:27]}  Re8 {[%clk 0:01:34]} 19. Rfe1 {[%clk 0:01:21]}  Nh5 {[%clk 0:00:56]} 20. Ng4 {[%clk 0:01:08]}  Nxf4 {[%clk 0:00:52]} 21. Qxf4 {[%clk 0:01:06]}  h5 {[%clk 0:00:51]} 22. Qh6+ {[%clk 0:00:56]}  Kg8 {[%clk 0:00:51]} 23. Ne5 {[%clk 0:00:54]}  Bf6 {[%clk 0:00:43]} 24. e4 {[%clk 0:00:37]}  Bg7 {[%clk 0:00:38]} 25. Qf4 {[%clk 0:00:35]}  Nxe5 {[%clk 0:00:35]} 26. dxe5 {[%clk 0:00:35]}  d4 {[%clk 0:00:35]} 27. Ne2 {[%clk 0:00:26]}  Rad8 {[%clk 0:00:36]} 28. Qg5 {[%clk 0:00:19]}  Qb5 {[%clk 0:00:28]} 29. Nf4 {[%clk 0:00:09]}  Bc8 {[%clk 0:00:27]} 30. Rad1 {[%clk 0:00:04]}  Qxe5 {[%clk 0:00:21]} 31. Qxe5 {[%clk 0:00:04]}  Rxe5 {[%clk 0:00:21]} 32. Nd3 {[%clk 0:00:05]}  Ra5 {[%clk 0:00:21]} 33. a3 {[%clk 0:00:05]}  c5 {[%clk 0:00:14]} 34. Rc1 {[%clk 0:00:05]}  b6 {[%clk 0:00:15]} 35. Red1 {[%clk 0:00:03]}  Be6 {[%clk 0:00:14]} 36. b4 {[%clk 0:00:03]}  Rxa3 {[%clk 0:00:10]} 37. bxc5 {[%clk 0:00:04]}  Bh6 {[%clk 0:00:11]} 38. Rb1 {[%clk 0:00:02]}  bxc5 {[%clk 0:00:08]} 39. Nxc5 {[%clk 0:00:02]}  d3 {[%clk 0:00:06]} 40. Nxe6 {[%clk 0:00:02]}  fxe6 {[%clk 0:00:06]} 41. e5 {[%clk 0:00:02]}  d2 {[%clk 0:00:06]} 42. Be4 {[%clk 0:00:03]}  g5 {[%clk 0:00:04]} 43. Rb7 {[%clk 0:00:03]}  Ra5 {[%clk 0:00:03]} 44. Bh7+ {[%clk 0:00:03]}  Kh8 {[%clk 0:00:03]} 45. Bg6 {[%clk 0:00:04]}  Bg7 {[%clk 0:00:04]} 46. Bxh5 {[%clk 0:00:04]}  Bxe5 {[%clk 0:00:04]} 47. Kg2 {[%clk 0:00:05]}  Ra1 {[%clk 0:00:04]} 48. Be2 {[%clk 0:00:04]}  Rxd1 {[%clk 0:00:04]} 49. Bxd1 {[%clk 0:00:05]}  Bd4 {[%clk 0:00:04]} 50. Re7 {[%clk 0:00:04]}  Rf8 {[%clk 0:00:04]} 51. f3 {[%clk 0:00:04]}  e5 {[%clk 0:00:05]} 52. Kf1 {[%clk 0:00:04]}  a5 {[%clk 0:00:03]} 53. Ke2 {[%clk 0:00:05]}  Bc3 {[%clk 0:00:04]} 54. Rc7 {[%clk 0:00:04]}  Bb4 {[%clk 0:00:04]} 55. Bc2 {[%clk 0:00:03]}  Rd8 {[%clk 0:00:03]} 56. Rh7+ {[%clk 0:00:03]}  Kg8 {[%clk 0:00:03]} 57. Rc7 {[%clk 0:00:04]}  Ra8 {[%clk 0:00:03]} 58. Bb3+ {[%clk 0:00:03]}  Kf8 {[%clk 0:00:03]} 59. Ba4 {[%clk 0:00:03]}  Rd8 {[%clk 0:00:02]} 60. Kd1 {[%clk 0:00:04]}  Rd3 {[%clk 0:00:03]} 61. Bc6 {[%clk 0:00:01]}  Re3 {[%clk 0:00:03]} 62. Kc2 {[%clk 0:00:01]}  Rc3+ {[%clk 0:00:02]} 63. Kd1 {[%clk 0:00:01]}  Rc1+ {[%clk 0:00:03]} 64. Ke2 {[%clk 0:00:02]}  d1=Q+ {[%clk 0:00:03]} 65. Ke3 {[%clk 0:00:02]}  Qe1+ {[%clk 0:00:03]} 0-1


[Site "https://www.chess.com"]

[Event "Titled Tuesday Blitz October 04 Early 2022"]
[White "Makhnev, Denis"]
[Black "Baskakov, Egor"]
[WhiteFideId "13707647"]
[BlackFideId "24197866"]
[WhiteElo "2486"]
[BlackElo "2211"]
[Result "1/2-1/2"]
[Round "05"]
[TimeControl "180+1"]
[Date "2022.10.04"]
[WhiteClock "0:00:04"]
[BlackClock "0:00:09"]

1. d4 {[%clk 0:03:00]}  Nf6 {[%clk 0:02:55]} 2. c4 {[%clk 0:03:00]}  e6 {[%clk 0:02:56]} 3. Nf3 {[%clk 0:03:00]}  d5 {[%clk 0:02:57]} 4. g3 {[%clk 0:03:00]}  Be7 {[%clk 0:02:57]} 5. Bg2 {[%clk 0:03:00]}  O-O {[%clk 0:02:57]} 6. O-O {[%clk 0:03:00]}  Ne4 {[%clk 0:02:58]} 7. Nbd2 {[%clk 0:02:56]}  f5 {[%clk 0:02:58]} 8. Ne5 {[%clk 0:02:57]}  c6 {[%clk 0:02:58]} 9. Qc2 {[%clk 0:02:54]}  Bd7 {[%clk 0:02:58]} 10. Ndf3 {[%clk 0:02:48]}  Be8 {[%clk 0:02:58]} 11. Nd3 {[%clk 0:02:49]}  Nd7 {[%clk 0:02:57]} 12. b3 {[%clk 0:02:45]}  g5 {[%clk 0:02:56]} 13. Bb2 {[%clk 0:02:41]}  Rc8 {[%clk 0:02:54]} 14. Nfe5 {[%clk 0:02:39]}  Nxe5 {[%clk 0:02:27]} 15. Nxe5 {[%clk 0:02:39]}  Nf6 {[%clk 0:02:27]} 16. Rac1 {[%clk 0:01:21]}  Nd7 {[%clk 0:02:22]} 17. Nd3 {[%clk 0:01:15]}  Bg6 {[%clk 0:02:20]} 18. Qd2 {[%clk 0:01:13]}  Bd6 {[%clk 0:02:19]} 19. e3 {[%clk 0:01:03]}  h5 {[%clk 0:02:12]} 20. Nc5 {[%clk 0:00:55]}  Nxc5 {[%clk 0:02:06]} 21. dxc5 {[%clk 0:00:56]}  Be7 {[%clk 0:02:06]} 22. b4 {[%clk 0:00:54]}  dxc4 {[%clk 0:02:01]} 23. Qc2 {[%clk 0:00:34]}  Qe8 {[%clk 0:01:24]} 24. Qxc4 {[%clk 0:00:33]}  Qf7 {[%clk 0:01:24]} 25. Rcd1 {[%clk 0:00:33]}  Rcd8 {[%clk 0:01:24]} 26. b5 {[%clk 0:00:32]}  f4 {[%clk 0:01:19]} 27. exf4 {[%clk 0:00:24]}  gxf4 {[%clk 0:01:19]} 28. bxc6 {[%clk 0:00:23]}  bxc6 {[%clk 0:01:19]} 29. Bxc6 {[%clk 0:00:22]}  Rc8 {[%clk 0:01:19]} 30. Bd7 {[%clk 0:00:22]}  Rxc5 {[%clk 0:01:18]} 31. Qxe6 {[%clk 0:00:22]}  Rc2 {[%clk 0:01:06]} 32. Qa6 {[%clk 0:00:16]}  Bf5 {[%clk 0:00:32]} 33. Bxf5 {[%clk 0:00:11]}  Qxf5 {[%clk 0:00:33]} 34. Bd4 {[%clk 0:00:12]}  h4 {[%clk 0:00:22]} 35. Qh6 {[%clk 0:00:11]}  Bf6 {[%clk 0:00:22]} 36. Bxf6 {[%clk 0:00:11]}  Qxf6 {[%clk 0:00:23]} 37. Qxf6 {[%clk 0:00:04]}  Rxf6 {[%clk 0:00:24]} 38. Rd8+ {[%clk 0:00:05]}  Kg7 {[%clk 0:00:23]} 39. Rd7+ {[%clk 0:00:05]}  Rf7 {[%clk 0:00:22]} 40. Rd4 {[%clk 0:00:04]}  hxg3 {[%clk 0:00:20]} 41. hxg3 {[%clk 0:00:05]}  fxg3 {[%clk 0:00:19]} 42. Rg4+ {[%clk 0:00:05]}  Kf8 {[%clk 0:00:19]} 43. Rxg3 {[%clk 0:00:05]}  Rxa2 {[%clk 0:00:19]} 44. Kg2 {[%clk 0:00:05]}  Ra6 {[%clk 0:00:19]} 45. Rc1 {[%clk 0:00:05]}  Raf6 {[%clk 0:00:17]} 46. Rc8+ {[%clk 0:00:05]}  Ke7 {[%clk 0:00:18]} 47. f3 {[%clk 0:00:05]}  Rd6 {[%clk 0:00:17]} 48. Rc2 {[%clk 0:00:05]}  a5 {[%clk 0:00:16]} 49. Rg4 {[%clk 0:00:04]}  Rdf6 {[%clk 0:00:14]} 50. Re4+ {[%clk 0:00:04]}  Kf8 {[%clk 0:00:13]} 51. Rc8+ {[%clk 0:00:04]}  Kg7 {[%clk 0:00:13]} 52. Re3 {[%clk 0:00:04]}  Ra6 {[%clk 0:00:13]} 53. Rc4 {[%clk 0:00:04]}  a4 {[%clk 0:00:13]} 54. Ra3 {[%clk 0:00:04]}  Rfa7 {[%clk 0:00:11]} 55. f4 {[%clk 0:00:05]}  Kf6 {[%clk 0:00:10]} 56. Kf3 {[%clk 0:00:05]}  Ke6 {[%clk 0:00:10]} 57. Rc5 {[%clk 0:00:05]}  Kd6 {[%clk 0:00:10]} 58. Rh5 {[%clk 0:00:05]}  Ke7 {[%clk 0:00:10]} 59. Kg4 {[%clk 0:00:05]}  Rg6+ {[%clk 0:00:09]} 60. Kf3 {[%clk 0:00:05]}  Rga6 {[%clk 0:00:09]} 61. Ke4 {[%clk 0:00:04]}  Re6+ {[%clk 0:00:09]} 62. Kf3 {[%clk 0:00:04]}  Rea6 {[%clk 0:00:09]} 1/2-1/2


[Site "https://www.chess.com"]

[Event "Titled Tuesday Blitz October 04 Early 2022"]
[White "Safarli, Eltaj"]
[Black "Vaibhav Jayant Raut"]
[WhiteFideId "13402129"]
[BlackFideId "5089034"]
[WhiteElo "2634"]
[BlackElo "2147"]
[Result "1-0"]
[Round "05"]
[TimeControl "180+1"]
[Date "2022.10.04"]
[WhiteClock "0:01:04"]
[BlackClock "0:00:08"]

1. e4 {[%clk 0:02:54]}  c5 {[%clk 0:02:58]} 2. Nc3 {[%clk 0:02:51]}  Nc6 {[%clk 0:02:58]} 3. Bb5 {[%clk 0:02:50]}  Nd4 {[%clk 0:02:56]} 4. Nf3 {[%clk 0:02:49]}  Nxb5 {[%clk 0:02:54]} 5. Nxb5 {[%clk 0:02:50]}  d5 {[%clk 0:02:55]} 6. exd5 {[%clk 0:02:50]}  a6 {[%clk 0:02:56]} 7. Nc3 {[%clk 0:02:49]}  Nf6 {[%clk 0:02:56]} 8. O-O {[%clk 0:02:48]}  Nxd5 {[%clk 0:02:52]} 9. Ne4 {[%clk 0:02:46]}  Bg4 {[%clk 0:02:48]} 10. Nxc5 {[%clk 0:02:39]}  e6 {[%clk 0:02:40]} 11. d4 {[%clk 0:02:35]}  Bxc5 {[%clk 0:02:28]} 12. dxc5 {[%clk 0:02:36]}  O-O {[%clk 0:02:28]} 13. a3 {[%clk 0:02:18]}  Qf6 {[%clk 0:02:21]} 14. c4 {[%clk 0:02:04]}  Ne7 {[%clk 0:02:03]} 15. Bg5 {[%clk 0:02:01]}  Qxg5 {[%clk 0:01:57]} 16. Nxg5 {[%clk 0:02:02]}  Bxd1 {[%clk 0:01:58]} 17. Rfxd1 {[%clk 0:02:02]}  Rfd8 {[%clk 0:01:30]} 18. Ne4 {[%clk 0:01:59]}  Nf5 {[%clk 0:01:28]} 19. b4 {[%clk 0:01:56]}  f6 {[%clk 0:01:20]} 20. Nd6 {[%clk 0:01:51]}  Nxd6 {[%clk 0:01:16]} 21. Rxd6 {[%clk 0:01:52]}  Kf7 {[%clk 0:01:07]} 22. Rad1 {[%clk 0:01:51]}  Rxd6 {[%clk 0:01:01]} 23. Rxd6 {[%clk 0:01:51]}  Ke7 {[%clk 0:01:01]} 24. Rb6 {[%clk 0:01:51]}  Ra7 {[%clk 0:00:57]} 25. f4 {[%clk 0:01:48]}  Kd7 {[%clk 0:00:56]} 26. Kf2 {[%clk 0:01:47]}  Ke7 {[%clk 0:00:23]} 27. Ke3 {[%clk 0:01:42]}  h6 {[%clk 0:00:20]} 28. h4 {[%clk 0:01:24]}  Kd7 {[%clk 0:00:16]} 29. g4 {[%clk 0:01:11]}  Ke7 {[%clk 0:00:14]} 30. Ke4 {[%clk 0:01:12]}  Kd7 {[%clk 0:00:14]} 31. a4 {[%clk 0:01:12]}  Ke7 {[%clk 0:00:13]} 32. a5 {[%clk 0:01:13]}  Kd7 {[%clk 0:00:13]} 33. h5 {[%clk 0:01:13]}  Ke7 {[%clk 0:00:13]} 34. f5 {[%clk 0:01:14]}  exf5+ {[%clk 0:00:11]} 35. gxf5 {[%clk 0:01:11]}  Kd7 {[%clk 0:00:11]} 36. Kd5 {[%clk 0:01:11]}  Kc7 {[%clk 0:00:11]} 37. c6 {[%clk 0:01:11]}  bxc6+ {[%clk 0:00:10]} 38. Rxc6+ {[%clk 0:01:12]}  Kd7 {[%clk 0:00:10]} 39. Rd6+ {[%clk 0:01:12]}  Ke7 {[%clk 0:00:11]} 40. c5 {[%clk 0:01:11]}  Rb7 {[%clk 0:00:11]} 41. Re6+ {[%clk 0:01:09]}  Kf7 {[%clk 0:00:10]} 42. c6 {[%clk 0:01:06]}  Rxb4 {[%clk 0:00:10]} 43. c7 {[%clk 0:01:07]}  Rb5+ {[%clk 0:00:10]} 44. Kc6 {[%clk 0:01:07]}  Rb1 {[%clk 0:00:07]} 45. Kd7 {[%clk 0:01:07]}  Rc1 {[%clk 0:00:08]} 46. c8=Q {[%clk 0:01:05]}  Rd1+ {[%clk 0:00:08]} 47. Kc7 {[%clk 0:01:04]} 1-0


[Site "https://www.chess.com"]

[Event "Titled Tuesday Blitz October 04 Early 2022"]
[White "Saydaliev, Saidakbar"]
[Black "Lazavik, Denis"]
[WhiteFideId "14203693"]
[BlackFideId "13515110"]
[WhiteElo "2276"]
[BlackElo "2437"]
[Result "1-0"]
[Round "05"]
[TimeControl "180+1"]
[Date "2022.10.04"]
[WhiteClock "0:00:20"]
[BlackClock "0:00:02"]

1. e4 {[%clk 0:03:00]}  c5 {[%clk 0:02:59]} 2. Nf3 {[%clk 0:02:24]}  e6 {[%clk 0:02:58]} 3. d4 {[%clk 0:02:09]}  cxd4 {[%clk 0:02:57]} 4. Nxd4 {[%clk 0:02:10]}  Nc6 {[%clk 0:02:57]} 5. Bf4 {[%clk 0:02:09]}  d6 {[%clk 0:02:48]} 6. Nxc6 {[%clk 0:02:09]}  bxc6 {[%clk 0:02:49]} 7. c4 {[%clk 0:02:10]}  Rb8 {[%clk 0:02:33]} 8. Qc2 {[%clk 0:02:03]}  Nf6 {[%clk 0:02:18]} 9. Nc3 {[%clk 0:02:03]}  e5 {[%clk 0:02:12]} 10. Be3 {[%clk 0:02:02]}  Qc7 {[%clk 0:02:10]} 11. Be2 {[%clk 0:02:01]}  Be7 {[%clk 0:02:10]} 12. O-O {[%clk 0:02:01]}  O-O {[%clk 0:02:11]} 13. Rad1 {[%clk 0:02:00]}  Be6 {[%clk 0:02:09]} 14. b3 {[%clk 0:02:00]}  Nd7 {[%clk 0:02:01]} 15. Rd2 {[%clk 0:01:55]}  Rfd8 {[%clk 0:01:58]} 16. Rfd1 {[%clk 0:01:55]}  h6 {[%clk 0:01:51]} 17. h3 {[%clk 0:01:49]}  Nf8 {[%clk 0:01:46]} 18. Kh2 {[%clk 0:01:47]}  Bg5 {[%clk 0:01:43]} 19. Bxg5 {[%clk 0:01:41]}  hxg5 {[%clk 0:01:44]} 20. c5 {[%clk 0:01:33]}  dxc5 {[%clk 0:01:26]} 21. Na4 {[%clk 0:01:33]}  Rxd2 {[%clk 0:01:14]} 22. Rxd2 {[%clk 0:01:28]}  c4 {[%clk 0:01:08]} 23. Bxc4 {[%clk 0:01:27]}  Bxc4 {[%clk 0:01:08]} 24. Qxc4 {[%clk 0:01:28]}  Ne6 {[%clk 0:01:09]} 25. Nc5 {[%clk 0:01:25]}  Nxc5 {[%clk 0:00:40]} 26. Qxc5 {[%clk 0:01:25]}  Rb5 {[%clk 0:00:40]} 27. Qc4 {[%clk 0:01:16]}  a5 {[%clk 0:00:36]} 28. Rc2 {[%clk 0:01:16]}  Rb6 {[%clk 0:00:20]} 29. Qc5 {[%clk 0:01:13]}  Ra6 {[%clk 0:00:20]} 30. Rd2 {[%clk 0:01:02]}  Rb6 {[%clk 0:00:09]} 31. Qxa5 {[%clk 0:01:01]}  Qb8 {[%clk 0:00:08]} 32. Rd7 {[%clk 0:00:57]}  f6 {[%clk 0:00:05]} 33. Qd2 {[%clk 0:00:55]}  Kh7 {[%clk 0:00:05]} 34. Qd1 {[%clk 0:00:55]}  Qe8 {[%clk 0:00:04]} 35. Qd6 {[%clk 0:00:52]}  Qg6 {[%clk 0:00:03]} 36. f3 {[%clk 0:00:48]}  Ra6 {[%clk 0:00:02]} 37. a4 {[%clk 0:00:36]}  Qh6 {[%clk 0:00:02]} 38. Qe6 {[%clk 0:00:30]}  Qg6 {[%clk 0:00:03]} 39. Rd8 {[%clk 0:00:30]}  Rb6 {[%clk 0:00:02]} 40. a5 {[%clk 0:00:23]}  Rb5 {[%clk 0:00:01]} 41. a6 {[%clk 0:00:22]}  Ra5 {[%clk 0:00:02]} 42. Qc8 {[%clk 0:00:20]} 1-0


[Site "https://www.chess.com"]